Cogmind - Beta 14 @@@ ROGUE MODE // 2025.01.13 @ 22:20:54 Player: Corvi Result: Destroyed by P-70 Sage with Tesla Rifle Performance ------------- Evolutions (5) 2500 Regions Visited (18) 3600 Robots Destroyed (146) 730 Value Destroyed (3668) 3668 Prototype IDs (49) 980 Alien Tech Used (1) 200 Bonus (225) 225 TOTAL SCORE: 11903 Bonus ------- High Alert Combat Kills 77 Aligned with FarCom 300 Met Imprinter 300 Met Zhirov 300 Friendly Fire -752 Cogmind --------- Core Integrity 0/1000 Matter 300/300 Energy 100/100 System Corruption 1% Temperature Cool (0) Movement Core (50) Location -4/Proximity Caves Parts ------- > --- POWER (2) -------- (None) > --- PROPULSION (4) --- (None) > --- UTILITY (9) ------ (None) > --- WEAPON (2) ------- (None) > --- INVENTORY (5) ---- Q-thruster Structural Scanner Nanoactuators Improved Shield Generator Authchip [Propulsion] Peak State ------------ > --- POWER ------------ Backup Power III Micro Fission Core > --- PROPULSION ------- Improved Cesium-ion Thruster Cooled Cesium-ion Thruster Cooled Cesium-ion Thruster Q-thruster > --- UTILITY ---------- Small Storage Unit Advanced Sensor Array Improved Melee Analysis Suite Nanoactuators Improved Hacking Suite Improved Hacking Suite Improved Hacking Suite Improved Hacking Suite Advanced System Shield > --- WEAPON ----------- Longsword +1 Lance > --- INVENTORY -------- Light Deuterium Engine Q-thruster Structural Scanner ECM Suite Cloaking Device Authchip [Propulsion] Advanced System Restoration Module Long-range Missile Launcher [Rating: 94] Favorites ----------- Power Light Nuclear Core Engine Ion Engine Power Core Light Nuclear Core Reactor Fusion Reactor Propulsion Light Treads Treads Light Treads Leg Aluminum Leg Wheel Compact Wheel Flight Unit Cooled Cesium-ion Thruster Utility Hacking Suite Device Structural Scanner Storage Huge Storage Unit Processor Improved Melee Analysis Suite Hackware Hacking Suite Protection Propulsion Shielding Weapon Assault Rifle Energy Gun Improved EM Shotgun Ballistic Gun Assault Rifle Ballistic Cannon Slug Cannon Launcher Improved Grenade Launcher Slashing Weapon Longsword +1 Piercing Weapon Lance Build | -11 -10 -10 -10 -9 -8 -7 -6 -6 -6 -6 -6 -6 -5 -5 -5 -5 -5 -4 ------- Run | Yrd Mat Min Exi Min Mat Fac Fac Was Fac Low Low Zio Pro Fac Upp Upp Zhi Pro Slots Evolved 10 | . . . . . 4 2 2 . . . . . . 2 . . . . Power 1 | . . . . . . . . . . . . . . 1 . . . . Propulsion 2 | . . . . . 2 . . . . . . . . . . . . . Utility 7 | . . . . . 2 2 2 . . . . . . 1 . . . . Weapon . | . . . . . . . . . . . . . . . . . . . Parts Attached 167 | 6 13 4 1 3 29 18 4 6 20 3 5 5 8 16 17 3 4 2 Power 28 | 1 1 3 . . 4 1 2 2 1 1 1 . . 3 6 . 1 1 Engine 11 | 1 1 3 . . 1 . . . . 1 . . . 1 2 . . 1 Core 15 | . . . . . 3 1 1 2 1 . 1 . . 2 4 . . . Reactor 2 | . . . . . . . 1 . . . . . . . . . 1 . Propulsion 42 | 2 4 . 1 . 12 5 . . 10 . . . . 2 5 1 . . Treads 13 | 2 2 . . . 9 . . . . . . . . . . . . . Leg 1 | . . . . . 1 . . . . . . . . . . . . . Wheel 3 | . 2 . 1 . . . . . . . . . . . . . . . Hover . | . . . . . . . . . . . . . . . . . . . Flight 25 | . . . . . 2 5 . . 10 . . . . 2 5 1 . . Utility 58 | 1 5 . . . 7 6 2 4 4 2 4 3 3 9 3 1 3 1 Device 25 | . . . . . . 1 . 3 . 2 4 3 2 5 3 . 1 1 Storage 6 | 1 2 . . . . 1 . 1 . . . . . . . . 1 . Processor 7 | . 1 . . . 5 . . . . . . . . . . 1 . . Hackware 14 | . . . . . . 4 2 . 4 . . . . 4 . . . . Protection 6 | . 2 . . . 2 . . . . . . . 1 . . . 1 . Artifact . | . . . . . . . . . . . . . . . . . . . Weapon 39 | 2 3 1 . 3 6 6 . . 5 . . 2 5 2 3 1 . . Energy Gun 1 | . . . . . 1 . . . . . . . . . . . . . Energy Cannon . | . . . . . . . . . . . . . . . . . . . Ballistic Gun 6 | 2 3 1 . . . . . . . . . . . . . . . . Ballistic Cannon 1 | . . . . 1 . . . . . . . . . . . . . . Launcher 9 | . . . . 1 3 2 . . . . . . 2 . 1 . . . Special Weapon . | . . . . . . . . . . . . . . . . . . . Impact Weapon . | . . . . . . . . . . . . . . . . . . . Slashing Weapon 17 | . . . . 1 2 4 . . 5 . . 1 3 1 . . . . Piercing Weapon 5 | . . . . . . . . . . . . 1 . 1 2 1 . . Special Melee Weapon . | . . . . . . . . . . . . . . . . . . . Unidentified Prototypes 15 | . . . . . 3 . 1 3 1 . . 1 . 2 . . 4 . Parts Lost 43 | . 4 1 . . 12 . . . 1 . . . 1 3 14 . . 7 Power 11 | . 1 . . . 2 . . . . . . . . 1 5 . . 2 Propulsion 17 | . 2 . . . 6 . . . 1 . . . . . 4 . . 4 Utility 9 | . . . . . 2 . . . . . . . 1 1 4 . . 1 Weapon 6 | . 1 1 . . 2 . . . . . . . . 1 1 . . . Highest Loss Streak 9 | . 4 1 . . 4 . . . 1 . . . 1 1 9 . . 7 To Critical Strikes . | . . . . . . . . . . . . . . . . . . . Average Slot Usage (%) 94 | . 98 100 100 86 85 90 91 93 99 100 100 99 99 98 80 70 81 74 Engine 5 | . 13 14 14 1 2 . . . . 5 4 . . 3 1 . . . Core 3 | . . . . . 4 7 6 6 6 . 1 6 6 5 5 5 5 2 Treads 14 | . 26 28 14 14 21 4 . . . . . . . . . . . . Wheel 1 | . 1 . 14 14 . . . . . . . . . . . . . . Flight 10 | . . . . . 1 26 26 26 25 26 26 26 26 22 19 23 23 19 Device 2 | . . . . . . 6 6 6 6 6 6 6 6 10 7 . 1 4 Storage 9 | . 14 14 14 14 9 7 6 6 6 6 6 6 6 5 5 5 5 4 Processor 7 | . 3 . . . 19 9 6 6 6 6 6 6 6 5 5 6 11 9 Hackware 11 | . . . . . . 19 31 33 33 33 33 33 29 27 22 17 17 15 Protection 6 | . 9 14 14 14 6 . . . . . . . 3 . . . 2 4 Ballistic Gun 9 | . 27 28 28 4 . . . . . . . . . . . . . . Ballistic Cannon 1 | . . . . 9 2 . . . . . . . . . . . . . Launcher 1 | . . . . 12 2 . . . . . . . . . . . . . Slashing Weapon 6 | . . . . . 8 6 6 6 12 13 13 12 13 9 5 5 5 4 Peak Build Rating 94 | 6 8 9 10 16 34 51 53 58 72 76 76 77 76 90 94 56 69 71 Average Rating 34 | 4 7 8 9 12 22 43 49 50 63 75 75 72 75 83 68 49 59 54 On Entrance 44 | . 6 8 9 10 13 31 45 50 51 72 76 76 72 72 90 43 56 64 Naked Turns 12 | . . . . . . . . . . . . . . . . . . 12 Heaviest Build 98 | 14 89 89 89 92 98 96 16 18 19 17 17 17 24 26 28 16 20 23 Greatest Support 89 | 40 40 40 16 16 89 89 20 20 26 26 26 26 26 26 27 20 20 20 Greatest Overweight (x) 29 | . 2 2 5 5 29 5 . . 1 . . . . . 1 . . 3 Average Overweight (x) . | . 1 2 5 5 2 . . . . . . . . . . . . . Largest Inventory Capacity 25 | 8 25 25 25 25 25 25 8 8 8 8 8 8 8 8 8 8 8 8 Average Capacity 17 | 7 18 25 25 25 25 11 8 8 8 8 8 8 8 8 8 8 8 7 Most Carried 25 | 4 15 24 25 25 25 24 7 8 8 8 8 8 8 8 8 8 8 8 Average Carried 14 | 2 11 19 24 23 23 10 6 7 7 8 8 8 7 6 7 7 7 7 Final Capacity 25 | 8 25 25 25 25 25 8 8 8 8 8 8 8 8 8 8 8 8 5 Final Carried 25 | 4 15 24 25 22 24 8 7 8 8 8 8 8 7 8 8 8 8 5 Class Distribution -------------------- 31% | Hacker-Sprinter 30% | Scavenger-Mutant 30% | Mutant 6% | Wizard-Sprinter Dominant Class ---------------- Mutant | -10/Materials Scavenger-Mutant | -10/Mines Mutant | -10/Exiles Mutant | -9/Mines Scavenger-Mutant | -8/Materials Hacker-Sprinter | -7/Factory Hacker-Sprinter | -6/Factory Hacker-Sprinter | -6/Waste Hacker-Sprinter | -6/Factory Hacker-Sprinter | -6/Lower Caves Hacker-Sprinter | -6/Lower Caves Hacker-Sprinter | -6/Zion Hacker-Sprinter | -5/Proximity Caves Wizard-Sprinter | -5/Factory Hacker-Sprinter | -5/Upper Caves Hacker-Sprinter | -5/Upper Caves Hacker-Sprinter | -5/Zhirov Hacker-Sprinter | -4/Proximity Caves Resources | -11 -10 -10 -10 -9 -8 -7 -6 -6 -6 -6 -6 -6 -5 -5 -5 -5 -5 -4 ----------- Run | Yrd Mat Min Exi Min Mat Fac Fac Was Fac Low Low Zio Pro Fac Upp Upp Zhi Pro Matter Collected 2781 | 260 452 169 . 41 516 351 . 110 184 50 40 50 36 276 156 30 . 60 Remotely . | . . . . . . . . . . . . . . . . . . . Salvage Created 4988 | 67 608 279 . 57 1397 325 . 781 389 104 . . 76 463 442 . . . Parts 285 | 1 38 22 . 4 82 16 . 10 35 3 . . 10 38 26 . . . Haulers Intercepted 5 | . 2 . . . 3 . . . . . . . . . . . . . Recyclers Shooed 6 | . 1 . . . 3 . . . . . . . . 2 . . . . Parts Field Recycled . | . . . . . . . . . . . . . . . . . . . Retrieved Matter . | . . . . . . . . . . . . . . . . . . . Parts Self-Destructed 27 | . . . . . . . . . . 2 . . 9 . 16 . . . Prevented 1 | . . . . . . . . . . 1 . . . . . . . . Kills | -11 -10 -10 -10 -9 -8 -7 -6 -6 -6 -6 -6 -6 -5 -5 -5 -5 -5 -4 ------- Run | Yrd Mat Min Exi Min Mat Fac Fac Was Fac Low Low Zio Pro Fac Upp Upp Zhi Pro Combat Hostiles Destroyed 86 | . 12 10 . 1 32 5 . . 2 2 . . 8 . 14 . . . Melee 33 | . . . . 1 9 5 . . 2 2 . . 3 . 11 . . . Guns 24 | . 12 10 . . 2 . . . . . . . . . . . . . AOE 29 | . . . . . 21 . . . . . . . 5 . 3 . . . Classes Destroyed 16 | 1 5 . . 1 6 1 . . . . . . 1 1 . . . . Worker 7 | . . . . . 3 . . . 2 . . . . 2 . . . . Builder 6 | . . . . . 2 . . . 3 . . . . 1 . . . . Tunneler 2 | . . . . . . . . . . . . . . 2 . . . . Hauler 5 | . 2 . . . 3 . . . . . . . . . . . . . Recycler 7 | 1 1 . . . 3 1 . . . . . . . 1 . . . . Operator 16 | . 1 . . . 2 3 . . 4 . . . . 6 . . . . Drone 1 | . . . . . . . . . . . . . 1 . . . . . Watcher 17 | . 3 . . . 4 2 . . 4 . . . . 4 . . . . Swarmer 43 | . 6 6 . . 7 3 . . . . . . 7 . 14 . . . Grunt 27 | . 6 4 . . 16 . . . . 1 . . . . . . . . Duelist 3 | . . . . 1 2 . . . . . . . . . . . . . Sentry 3 | . . . . . 3 . . . . . . . . . . . . . Specialist 2 | . . . . . 2 . . . . . . . . . . . . . Hunter 2 | . . . . . 1 1 . . . . . . . . . . . . Programmer 4 | . . . . . . 1 . . 2 1 . . . . . . . . Heavy 1 | . . . . . 1 . . . . . . . . . . . . . Best Kill Streak 11 | 1 4 3 . 1 11 4 . . 3 1 . . 4 2 4 . . . Combat Bots Only 7 | . 4 3 . 1 7 3 . . 1 1 . . 4 . 4 . . . Max Kills in Single Turn 3 | 1 1 1 . 1 3 1 . . 1 1 . . 3 1 2 . . . Gunslinging . | . . . . . . . . . . . . . . . . . . . Exploded 3 | . . . . . 3 . . . . . . . 3 . 2 . . . Melee 1 | . . . . 1 1 1 . . 1 1 . . 1 . 1 . . . Uniques/NPCs Destroyed . | . . . . . . . . . . . . . . . . . . . Combat | -11 -10 -10 -10 -9 -8 -7 -6 -6 -6 -6 -6 -6 -5 -5 -5 -5 -5 -4 -------- Run | Yrd Mat Min Exi Min Mat Fac Fac Was Fac Low Low Zio Pro Fac Upp Upp Zhi Pro Hostile Shots Fired 585 | . 112 63 . 7 117 32 . . 38 6 3 . 23 3 105 . . 76 Missed 186 | . 28 19 . 3 32 5 . . 18 1 2 . 12 3 37 . . 26 Damage Taken 5762 | . 783 461 . 95 1415 429 . . 229 79 21 . 163 46 1092 . . 949 Core 1711 | . 117 92 . 18 290 69 . . 83 . . . 32 2 323 . . 685 Absorbed by Shields . | . . . . . . . . . . . . . . . . . . . Redirected to Shielding 90 | . 3 43 . 3 14 . . . . . . . . . . . . 27 Regen/Repaired (Parts) 415 | . . . . . 42 104 . . . . . 190 . 79 . . . . Core Remaining (%) 66 | 100 . . . 9 47 90 . . . . . . 86 . . . . . Volleys Fired 145 | . 63 34 . 1 38 3 . . . . . . 4 . 2 . . . Largest 2 | . 2 2 . 1 1 1 . . . . . . 1 . 1 . . . Hottest 48 | . 40 40 . 20 48 33 . . . . . . 46 . 43 . . . Shots Fired 238 | . 124 66 . 1 38 3 . . . . . . 4 . 2 . . . Gun 194 | . 124 66 . 1 3 . . . . . . . . . . . . . Cannon 2 | . . . . . 2 . . . . . . . . . . . . . Launcher 42 | . . . . . 33 3 . . . . . . 4 . 2 . . . Special . | . . . . . . . . . . . . . . . . . . . Kinetic 193 | . 124 66 . 1 2 . . . . . . . . . . . . . Thermal . | . . . . . . . . . . . . . . . . . . . Explosive 42 | . . . . . 33 3 . . . . . . 4 . 2 . . . Electromagnetic 3 | . . . . . 3 . . . . . . . . . . . . . Robot Hit Streak 12 | . 8 12 . 9 6 7 . . . . . . . . 1 . . . Robot Miss Streak 3 | . 3 3 . . 2 . . . . . . . 2 . . . . . Penetration Max . | . . . . . . . . . . . . . . . . . . . Secondary Targets 2 | . 1 1 . . . . . . . . . . . . . . . . Max Gunslinging Chain 1 | . 1 1 . . . . . . . . . . . . . . . . Shots Hit Robots 312 | . 71 48 . 4 67 25 . 13 26 4 . . 4 28 22 . . . Core Hits 175 | . 31 17 . 1 72 9 . 3 9 2 . . 8 9 14 . . . Critical Kills 1 | . 1 . . . . . . . . . . . . . . . . . Critical Parts Destroyed . | . . . . . . . . . . . . . . . . . . . Critical Strikes 12 | . 1 . . 1 6 1 . . . 1 . . . . 2 . . . Destroy 1 | . 1 . . . . . . . . . . . . . . . . . Sever 11 | . . . . 1 6 1 . . . 1 . . . . 2 . . . Melee Attacks 301 | . . . . 3 66 44 1 13 77 5 1 . 6 51 34 . . . Impact . | . . . . . . . . . . . . . . . . . . . Slashing 292 | . . . . 3 66 44 1 13 77 5 1 . 6 48 28 . . . Piercing 9 | . . . . . . . . . . . . . . 3 6 . . . Sneak Attacks 37 | . . . . . 16 4 . . 7 1 . . . 9 . . . . Combat Hostiles 3 | . . . . . 1 1 . . . 1 . . . . . . . . Follow-up Attacks 8 | . . . . . . . . . 3 . . . 1 . 4 . . . Damage Inflicted 15294 | 1 927 535 . 112 4911 1505 . 936 1836 222 . . 707 2182 1420 . . . Guns 1485 | . 927 523 . 6 29 . . . . . . . . . . . . . Cannons . | . . . . . . . . . . . . . . . . . . . Explosions 3390 | . . . . . 2518 44 . . . . . . 513 . 315 . . . Melee 10406 | . . . . 106 2364 1461 . 936 1836 222 . . 194 2182 1105 . . . Ramming 13 | 1 . 12 . . . . . . . . . . . . . . . . Kinetic 1456 | . 927 523 . 6 . . . . . . . . . . . . . . Thermal 56 | . . . . . 56 . . . . . . . . . . . . . Explosive 3334 | . . . . . 2462 44 . . . . . . 513 . 315 . . . Electromagnetic 29 | . . . . . 29 . . . . . . . . . . . . . Impact . | . . . . . . . . . . . . . . . . . . . Slashing 10266 | . . . . 106 2364 1461 . 936 1836 222 . . 194 2182 965 . . . Piercing 140 | . . . . . . . . . . . . . . . 140 . . . Highest Corruption 2 | . . . . . . 2 . . 1 1 1 1 . 2 2 . . 1 Average Corruption 1 | . . . . . . 1 . . 1 1 1 1 . 2 1 . . 1 Corruption Purged 2 | . . . . . . . . . . . . . . . 2 . . . Corruption Blocked . | . . . . . . . . . . . . . . . . . . . Effects 29 | . . . . . . 9 . . 17 1 2 . . . . . . . Message Errors 6 | . . . . . . 1 . . 4 . 1 . . . . . . . Matter Fused 2 | . . . . . . 1 . . 1 . . . . . . . . . Heat Flow Errors 9 | . . . . . . 3 . . 5 . 1 . . . . . . . Energy Discharges 4 | . . . . . . 3 . . 1 . . . . . . . . . Parts Rejected 1 | . . . . . . . . . 1 . . . . . . . . . Parts Fused 2 | . . . . . . . . . 1 1 . . . . . . . . Data Loss (minor) 1 | . . . . . . . . . 1 . . . . . . . . . Data Loss (major) 3 | . . . . . . 1 . . 2 . . . . . . . . . Alerts 1 | . . . . . . . . . 1 . . . . . . . . . Overload Shots . | . . . . . . . . . . . . . . . . . . . Overflow Damage 2667 | . . . . . 297 400 . 181 656 . . . 146 802 185 . . . Projectiles . | . . . . . . . . . . . . . . . . . . . Explosions 188 | . . . . . 72 . . . . . . . 72 . 44 . . . Melee 2479 | . . . . . 225 400 . 181 656 . . . 74 802 141 . . . Knockbacks 1 | . . 1 . . . . . . . . . . . . . . . . Impact 1 | . . 1 . . . . . . . . . . . . . . . . Kinetic . | . . . . . . . . . . . . . . . . . . . Secondary . | . . . . . . . . . . . . . . . . . . . Self-Inflicted Damage 117 | . . . . . 117 . . . . . . . . . . . . . Shots 3 | . . . . . 3 . . . . . . . . . . . . . Rammed 4 | . 1 3 . . . . . . . . . . . . . . . . Targets Rammed 5 | 1 1 3 . . . . . . . . . . . . . . . . Kicked . | . . . . . . . . . . . . . . . . . . . Crushed 1 | 1 . . . . . . . . . . . . . . . . . . Highest Temperature 212 | . 8 9 . . 12 193 . . 212 . 157 . . . 4 . . . Average Temperature 67 | . 3 6 . . 6 79 . . 100 . 82 . . . 2 . . . Received Heat Transfer 951 | . 204 144 . 15 405 . . . 45 9 27 . . . 63 . . 39 Siege Activations . | . . . . . . . . . . . . . . . . . . . Robots Corrupted . | . . . . . . . . . . . . . . . . . . . Combat Hostiles . | . . . . . . . . . . . . . . . . . . . Parts Fried . | . . . . . . . . . . . . . . . . . . . Impact Corruptions . | . . . . . . . . . . . . . . . . . . . Robots Melted . | . . . . . . . . . . . . . . . . . . . Combat Hostiles . | . . . . . . . . . . . . . . . . . . . Parts Melted . | . . . . . . . . . . . . . . . . . . . Heat Transferred 100 | . . . . . 100 . . . . . . . . . . . . . Parts Sabotaged . | . . . . . . . . . . . . . . . . . . . Parts Stolen . | . . . . . . . . . . . . . . . . . . . Parts Stripped . | . . . . . . . . . . . . . . . . . . . Power Chain Reactions 1 | . . . . . 1 . . . . . . . . . . . . . Alert | -11 -10 -10 -10 -9 -8 -7 -6 -6 -6 -6 -6 -6 -5 -5 -5 -5 -5 -4 ------- Run | Yrd Mat Min Exi Min Mat Fac Fac Was Fac Low Low Zio Pro Fac Upp Upp Zhi Pro Peak Influence 525 | 5 253 105 . 45 525 358 53 18 190 . . . . 406 . . . . Initial 247 | . 3 . . . . 168 23 18 12 . . . . 247 . . . . Average 103 | 1 45 35 . 20 204 167 38 18 53 . . . . 139 . . . . Maximum Alert Level 2 | . 1 . . . 2 1 . . . . . . . 2 . . . . Low Security (%) 80 | 100 90 100 . 100 55 70 100 100 100 . . . . 60 . . . . Level 1 16 | . 9 . . . 35 29 . . . . . . . 38 . . . . Level 2 2 | . . . . . 9 . . . . . . . . . . . . . Level 3 . | . . . . . . . . . . . . . . . . . . . Level 4 . | . . . . . . . . . . . . . . . . . . . Level 5 . | . . . . . . . . . . . . . . . . . . . High Security . | . . . . . . . . . . . . . . . . . . . Max Security . | . . . . . . . . . . . . . . . . . . . Squads Dispatched 29 | . 1 . . . 5 5 . . 7 . . . . 10 . . . 1 Investigation 10 | . . . . . . 1 . . 4 . . . . 5 . . . . Extermination 7 | . . . . . . 2 . . 3 . . . . 2 . . . . Reinforcement 11 | . 1 . . . 5 2 . . . . . . . 3 . . . . Assault 1 | . . . . . . . . . . . . . . . . . . 1 Garrison . | . . . . . . . . . . . . . . . . . . . Intercept . | . . . . . . . . . . . . . . . . . . . Searches Triggered . | . . . . . . . . . . . . . . . . . . . Construction Impeded 1 | . . . . . 1 . . . . . . . . . . . . . Haulers Reinforced . | . . . . . . . . . . . . . . . . . . . Active Scanning Responses . | . . . . . . . . . . . . . . . . . . . Cargo Convoy Interrupts . | . . . . . . . . . . . . . . . . . . . Stealth | -11 -10 -10 -10 -9 -8 -7 -6 -6 -6 -6 -6 -6 -5 -5 -5 -5 -5 -4 --------- Run | Yrd Mat Min Exi Min Mat Fac Fac Was Fac Low Low Zio Pro Fac Upp Upp Zhi Pro Distress Signals 11 | . 1 . . . 6 1 . . 2 . . . . 1 . . . . Communications Jammed . | . . . . . . . . . . . . . . . . . . . Distress Signals . | . . . . . . . . . . . . . . . . . . . Times Spotted 202 | . 20 11 . 4 52 13 1 . 24 3 2 . 14 18 18 . . 22 Peak Tracking Total 12 | . 4 3 . 2 6 3 1 . 4 2 3 . 4 4 10 . . 12 Tactical Retreats 31 | . 2 2 . 1 4 2 . . 7 1 1 . . 5 3 . . 3 Traps | -11 -10 -10 -10 -9 -8 -7 -6 -6 -6 -6 -6 -6 -5 -5 -5 -5 -5 -4 ------- Run | Yrd Mat Min Exi Min Mat Fac Fac Was Fac Low Low Zio Pro Fac Upp Upp Zhi Pro Traps Triggered 12 | . . . . . . 4 1 . 1 . . . . 6 . . . . Indirectly . | . . . . . . . . . . . . . . . . . . . Trap Hack Attempts . | . . . . . . . . . . . . . . . . . . . Triggered . | . . . . . . . . . . . . . . . . . . . Disarmed . | . . . . . . . . . . . . . . . . . . . Reprogrammed . | . . . . . . . . . . . . . . . . . . . Reused . | . . . . . . . . . . . . . . . . . . . Traps Extracted . | . . . . . . . . . . . . . . . . . . . Installed 1 | . . . . 1 . . . . . . . . . . . . . . Triggered 2 | . . . . . . . . . . 1 . . . . . . . 1 Most Traps Carried 5 | . . 5 5 5 4 . . . . . . . . . . . . . Machines | -11 -10 -10 -10 -9 -8 -7 -6 -6 -6 -6 -6 -6 -5 -5 -5 -5 -5 -4 ---------- Run | Yrd Mat Min Exi Min Mat Fac Fac Was Fac Low Low Zio Pro Fac Upp Upp Zhi Pro Machines Disabled 7 | . . . . . 4 3 . . . . . . . . . . . . Max in Single Turn 2 | . . . . . 2 2 . . . . . . . . . . . . Garrison Access 7 | . . . . . . 2 1 . 3 . . . . 1 . . . . Machines Repaired . | . . . . . . . . . . . . . . . . . . . Machines Dismantled . | . . . . . . . . . . . . . . . . . . . Machines Sabotaged . | . . . . . . . . . . . . . . . . . . . Overloaded Fab Kills . | . . . . . . . . . . . . . . . . . . . Hacking | -11 -10 -10 -10 -9 -8 -7 -6 -6 -6 -6 -6 -6 -5 -5 -5 -5 -5 -4 --------- Run | Yrd Mat Min Exi Min Mat Fac Fac Was Fac Low Low Zio Pro Fac Upp Upp Zhi Pro Machines Accessed 94 | . 6 . 1 . 9 17 1 . 31 . . . . 22 . . 7 . Terminals 47 | . 6 . . . 6 10 . . 14 . . . . 11 . . . . Fabricators 11 | . . . . . . 2 . . 6 . . . . 3 . . . . Repair Stations 5 | . . . . . 1 1 . . 1 . . . . 2 . . . . Recycling Units 9 | . . . . . 1 1 . . 4 . . . . 3 . . . . Scanalyzers 7 | . . . . . 1 1 . . 3 . . . . 2 . . . . Garrison Access 7 | . . . . . . 2 1 . 3 . . . . 1 . . . . Total Hacks 317 | . 13 . 1 . 23 60 1 . 115 . . . . 75 . . 29 . Successful 236 | . 5 . 1 . 13 40 1 . 94 . . . . 53 . . 29 . Failed 80 | . 8 . . . 10 20 . . 20 . . . . 22 . . . . Catastrophic 7 | . 1 . . . 2 2 . . . . . . . 2 . . . . Database Lockouts 1 | . . . . . . . . . 1 . . . . . . . . . Manual 120 | . 9 . 1 . 12 33 . . 32 . . . . 33 . . . . Terminals 187 | . 13 . . . 16 44 . . 75 . . . . 39 . . . . Fabricators 21 | . . . . . . 2 . . 10 . . . . 9 . . . . Repair Stations 18 | . . . . . 2 2 . . 3 . . . . 11 . . . . Recycling Units 18 | . . . . . 3 1 . . 6 . . . . 8 . . . . Scanalyzers 31 | . . . . . 2 6 . . 17 . . . . 6 . . . . Garrison Access 12 | . . . . . . 5 1 . 4 . . . . 2 . . . . Terminal Hacks 133 | . 3 . 1 . 8 24 . . 52 . . . . 16 . . 29 . Record 31 | . . . . . . 2 . . 12 . . . . . . . 17 . Part Schematic 15 | . . . . . . 4 . . 6 . . . . 1 . . 4 . Robot Analysis 7 | . 2 . . . . . . . 1 . . . . . . . 4 . Prototype ID Bank 5 | . . . . . . 1 . . . . . . . . . . 4 . Branch Access Points 3 | . . . . . . 1 . . 1 . . . . 1 . . . . Terminal Index 3 | . . . . . . 1 . . 1 . . . . 1 . . . . Fabricator Index 1 | . . . . . . . . . . . . . . 1 . . . . Recycling Unit Index 1 | . . . . . 1 . . . . . . . . . . . . . Scanalyzer Index 3 | . . . . . . . . . 1 . . . . 2 . . . . Alert Level 21 | . . . . . 4 6 . . 5 . . . . 6 . . . . Unreport Threat 7 | . . . . . 2 1 . . 2 . . . . 2 . . . . Locate Traps 6 | . . . . . . . . . 5 . . . . 1 . . . . Dispatch Records 1 | . . . . . . 1 . . . . . . . . . . . . Maintenance Status 1 | . 1 . . . . . . . . . . . . . . . . . Security Status 1 | . . . . . . 1 . . . . . . . . . . . . Surveillance Status 2 | . . . . . . . . . 2 . . . . . . . . . Investigation Status 1 | . . . . . . . . . 1 . . . . . . . . . Extermination Status 1 | . . . . . . . . . 1 . . . . . . . . . Assault Status 3 | . . . . . . 1 . . 2 . . . . . . . . . Recall Investigation 4 | . . . . . . 1 . . 3 . . . . . . . . . Recall Extermination 3 | . . . . . . . . . 2 . . . . 1 . . . . Recall Reinforcements 1 | . . . . . . 1 . . . . . . . . . . . . Recall Assault 2 | . . . . . . . . . 2 . . . . . . . . . Hauler Manifests 3 | . . . . . 1 1 . . 1 . . . . . . . . . Registered Components 1 | . . . . . . . . . 1 . . . . . . . . . Registered Prototypes 1 | . . . . . . 1 . . . . . . . . . . . . Zone Layout 3 | . . . . . . . . . 3 . . . . . . . . . Security Stations 1 | . . . . . . 1 . . . . . . . . . . . . Derelict Proto ID Bank 1 | . . . 1 . . . . . . . . . . . . . . . Fabricator Hacks 16 | . . . . . . 2 . . 8 . . . . 6 . . . . Network Status 3 | . . . . . . 1 . . 1 . . . . 1 . . . . Load Schematic 7 | . . . . . . 1 . . 3 . . . . 3 . . . . Build 6 | . . . . . . . . . 4 . . . . 2 . . . . Repair Station Hacks 12 | . . . . . 2 2 . . 1 . . . . 7 . . . . Scan Component 6 | . . . . . 1 1 . . 1 . . . . 3 . . . . Repair 5 | . . . . . 1 1 . . . . . . . 3 . . . . Refit 1 | . . . . . . . . . . . . . . 1 . . . . Recycling Unit Hacks 13 | . . . . . . 1 . . 6 . . . . 6 . . . . Report Inventory 9 | . . . . . . 1 . . 4 . . . . 4 . . . . Retrieve Components 4 | . . . . . . . . . 2 . . . . 2 . . . . Scanalyzer 28 | . . . . . 2 4 . . 16 . . . . 6 . . . . Insert Component 13 | . . . . . 1 2 . . 8 . . . . 2 . . . . Analyze 15 | . . . . . 1 2 . . 8 . . . . 4 . . . . Garrison Access Hacks 7 | . . . . . . 2 1 . 3 . . . . 1 . . . . Seal Access 7 | . . . . . . 2 1 . 3 . . . . 1 . . . . Unauthorized Hacks 27 | . 2 . . . 1 5 . . 8 . . . . 11 . . . . Terminals 24 | . 2 . . . 1 5 . . 7 . . . . 9 . . . . Assimilate 7 | . . . . . . . . . 3 . . . . 4 . . . . Botnet 16 | . 1 . . . 1 5 . . 4 . . . . 5 . . . . Operators 1 | . 1 . . . . . . . . . . . . . . . . . Fabricators 2 | . . . . . . . . . 1 . . . . 1 . . . . Report 1 | . . . . . . . . . 1 . . . . . . . . . Recompile 1 | . . . . . . . . . . . . . . 1 . . . . Repair Stations . | . . . . . . . . . . . . . . . . . . . Recycling Units 1 | . . . . . . . . . . . . . . 1 . . . . Monitor 1 | . . . . . . . . . . . . . . 1 . . . . Scanalyzers . | . . . . . . . . . . . . . . . . . . . Garrison Access . | . . . . . . . . . . . . . . . . . . . Data Cores Recovered 8 | . . . . . . 1 . . 3 . . . . 4 . . . . Used 5 | . . . . . . . . . 2 . . . . 3 . . . . Hacking Detections 64 | . 6 . . . 8 13 . . 22 . . . . 15 . . . . Full Trace Events 9 | . . . . . . 1 . . 4 . . . . 4 . . . . Feedback Events 1 | . . . . . . . . . . . . . . 1 . . . . Hackware Fried 1 | . . . . . . . . . . . . . . 1 . . . . Feedback Blocked 1 | . . . . . . . . . . . . . . 1 . . . . Robot Schematics Acquired . | . . . . . . . . . . . . . . . . . . . Robots Built . | . . . . . . . . . . . . . . . . . . . Authchips . | . . . . . . . . . . . . . . . . . . . Time . | . . . . . . . . . . . . . . . . . . . Total Robot Build Rating . | . . . . . . . . . . . . . . . . . . . Part Schematics Acquired 26 | . . . . . 1 6 . . 13 . . . . 2 . . 4 . Parts Built 7 | . . . . . . . . . 5 . . . . 2 . . . . Authchips . | . . . . . . . . . . . . . . . . . . . Time 331 | . . . . . . . . . 189 . . . . 142 . . . . Total Part Build Rating 42 | . . . . . . . . . 32 . . . . 10 . . . . Parts Repaired 5 | . . . . . 1 1 . . . . . . . 3 . . . . Time 181 | . . . . . 38 44 . . . . . . . 99 . . . . Parts Recycled . | . . . . . . . . . . . . . . . . . . . Recycled Matter . | . . . . . . . . . . . . . . . . . . . Retrieved Matter . | . . . . . . . . . . . . . . . . . . . Retrieved Components 8 | . . . . . . . . . 4 . . . . 4 . . . . Parts Scanalyzed 11 | . . . . . 1 2 . . 7 . . . . 1 . . . . Part Schematics Acquired 11 | . . . . . 1 2 . . 7 . . . . 1 . . . . Parts Damaged . | . . . . . . . . . . . . . . . . . . . Bothacking | -11 -10 -10 -10 -9 -8 -7 -6 -6 -6 -6 -6 -6 -5 -5 -5 -5 -5 -4 ------------ Run | Yrd Mat Min Exi Min Mat Fac Fac Was Fac Low Low Zio Pro Fac Upp Upp Zhi Pro Used RIF Installer . | . . . . . . . . . . . . . . . . . . . Robots Hacked . | . . . . . . . . . . . . . . . . . . . Non-combat . | . . . . . . . . . . . . . . . . . . . Combat . | . . . . . . . . . . . . . . . . . . . Robot Hacks Applied . | . . . . . . . . . . . . . . . . . . . Relay Couplers Released . | . . . . . . . . . . . . . . . . . . . Fabnet Peak Effective % . | . . . . . . . . . . . . . . . . . . . Robots Rewired . | . . . . . . . . . . . . . . . . . . . Allies Hacked . | . . . . . . . . . . . . . . . . . . . Hacks Repelled . | . . . . . . . . . . . . . . . . . . . Allies | -11 -10 -10 -10 -9 -8 -7 -6 -6 -6 -6 -6 -6 -5 -5 -5 -5 -5 -4 -------- Run | Yrd Mat Min Exi Min Mat Fac Fac Was Fac Low Low Zio Pro Fac Upp Upp Zhi Pro Total Allies 6 | . . 1 . . . . . . 1 . . . . 4 . . . . Largest Group 3 | . . 1 . . . . . . . . . . . 3 . . . . Highest-Rated Group 93 | . . 31 . . . . . . . . . . . 93 . . . . Highest-Rated Ally 31 | . . 31 . . . . . . . . . . . 31 . . . . Total Orders . | . . . . . . . . . . . . . . . . . . . Ally Attacks 29 | . . . . . . . . . . . . . . 29 . . . . Total Damage 522 | . . . . . . . . . . . . . . 522 . . . . Kills 2 | . . . . . . . . . . . . . . 2 . . . . Allies Corrupted . | . . . . . . . . . . . . . . . . . . . Allies Melted . | . . . . . . . . . . . . . . . . . . . Intel | -11 -10 -10 -10 -9 -8 -7 -6 -6 -6 -6 -6 -6 -5 -5 -5 -5 -5 -4 ------- Run | Yrd Mat Min Exi Min Mat Fac Fac Was Fac Low Low Zio Pro Fac Upp Upp Zhi Pro Robot Analysis Total 7 | . 2 . . . . . . . 1 . . . . . . . 4 . Derelict Logs Recovered 12 | . . 1 . 1 . . . . . . 2 2 1 . 3 1 . 1 Drone Launches . | . . . . . . . . . . . . . . . . . . . Drone Recoveries . | . . . . . . . . . . . . . . . . . . . Exploration | -11 -10 -10 -10 -9 -8 -7 -6 -6 -6 -6 -6 -6 -5 -5 -5 -5 -5 -4 ------------- Run | Yrd Mat Min Exi Min Mat Fac Fac Was Fac Low Low Zio Pro Fac Upp Upp Zhi Pro Turns Passed 16107 | 124 2323 2387 500 789 3537 1208 51 136 1976 155 231 362 289 1361 442 78 64 94 Spaces Moved 18894 | 74 888 709 285 408 1095 2159 158 319 4993 493 815 1303 658 3027 828 278 177 227 Core 32 | 7 . . . . 3 . . . . . . . . . . . . 22 Treads 2600 | 67 796 709 . . 973 55 . . . . . . . . . . . . Legs . | . . . . . . . . . . . . . . . . . . . Wheels 904 | . 92 . 285 408 119 . . . . . . . . . . . . . Hover . | . . . . . . . . . . . . . . . . . . . Flight 15358 | . . . . . . 2104 158 319 4993 493 815 1303 658 3027 828 278 177 205 Fastest Speed 24 | 50 90 320 175 175 175 26 26 26 26 27 27 27 27 27 24 26 31 31 Average Speed 69 | 149 233 320 175 175 285 33 26 26 26 27 27 27 27 27 31 26 31 37 Slowest Speed 1500 | 160 320 320 175 175 1500 386 26 26 105 27 30 27 27 27 114 31 31 275 Overloaded Moves 64 | . . . . . . . . . . . . . . . 64 . . . Propulsion Burnouts . | . . . . . . . . . . . . . . . . . . . Robots Hopped . | . . . . . . . . . . . . . . . . . . . Cave-ins Triggered . | . . . . . . . . . . . . . . . . . . . Exploration Rate (%) 60 | 4 95 87 62 85 63 38 4 86 69 60 73 86 56 56 79 49 62 40 Regions Visited 18 Branch Regions 11 Pre-discovered Areas 4 | . . . . . . . . . . . . 1 . . . . 3 . Known Exits Taken 3 | . . . . . . . . . 1 . . . 1 1 . . . . Unknown Exits Taken 13 | 1 1 1 1 1 1 1 . . . 1 1 1 . . 1 1 1 . Scrap Searched 27 | . . 1 . 1 . . . . . 4 5 3 4 . 3 4 . 2 Spaces Dug 70 | . . . . . 4 14 . . 38 . 1 . . 13 . . . . Terrain Destroyed 285 | . . . . . 129 29 . . 38 . 1 . 44 13 31 . . . Melee 70 | . . . . . 4 14 . . 38 . 1 . . 13 . . . . Projectile . | . . . . . . . . . . . . . . . . . . . AOE 215 | . . . . . 125 15 . . . . . . 44 . 31 . . . Terrain Rammed . | . . . . . . . . . . . . . . . . . . . Walls Destroyed . | . . . . . . . . . . . . . . . . . . . Machines Disabled . | . . . . . . . . . . . . . . . . . . . Actions | -11 -10 -10 -10 -9 -8 -7 -6 -6 -6 -6 -6 -6 -5 -5 -5 -5 -5 -4 --------- Run | Yrd Mat Min Exi Min Mat Fac Fac Was Fac Low Low Zio Pro Fac Upp Upp Zhi Pro Total 21252 | 84 1022 762 286 482 1369 2570 166 345 5556 508 820 1311 758 3542 971 281 184 235 Wait 1453 | . 32 1 . 54 104 248 . . 430 7 . . 80 405 87 . . 5 Move 18877 | 73 887 708 284 407 1094 2158 158 318 4992 492 814 1302 657 3026 827 277 176 227 Hop . | . . . . . . . . . . . . . . . . . . . Pick Up 85 | 4 17 9 1 4 18 11 1 1 9 . . . . 7 2 . 1 . Fast Attach 100 | 6 4 4 . 1 19 7 2 6 16 1 . 4 2 13 8 2 4 1 Attach 40 | . 6 . . . 4 11 2 . 2 . . . 3 3 6 1 1 1 Detach 18 | . 2 . . . 2 3 . 1 . . . . 2 2 5 1 . . Swap 29 | . 3 . 1 2 6 . . . 2 2 5 1 3 1 3 . . . Drop 122 | . 7 3 . 9 18 31 2 6 23 1 . 4 2 11 2 . 2 1 Fire 145 | . 63 34 . 1 38 3 . . . . . . 4 . 2 . . . Melee 275 | . . . . 3 66 44 1 13 64 5 1 . 5 44 29 . . . Ram . | . . . . . . . . . . . . . . . . . . . Kick . | . . . . . . . . . . . . . . . . . . . Crush 5 | 1 1 3 . . . . . . . . . . . . . . . . Escape Stasis 102 | . . . . . . 54 . . 18 . . . . 30 . . . . Rewire . | . . . . . . . . . . . . . . . . . . . Trap 1 | . . . . 1 . . . . . . . . . . . . . . Miscellaneous . | . . . . . . . . . . . . . . . . . . . Route ------- -11/Scrapyard -10/Materials (discovered 6 exits: [*Mat x3] / [*Min x2] / [*Sub]) -10/Mines (discovered 3 exits: [*Mat x2] / *Exi) -10/Exiles -9/Mines (discovered 2 exits: *Mat x2) -8/Materials (discovered 2 exits: *Fac x2) -7/Factory (discovered 3 exits: *Fac / *Low x2) -6/Factory -6/Waste -6/Factory (discovered 3 exits: *Fac / *Low x2) -6/Lower Caves -6/Lower Caves (discovered 2 exits: Fac / [*Zio]) -6/Zion -5/Proximity Caves -5/Factory (discovered 4 exits: *Fac x2 / *Upp x2) -5/Upper Caves -5/Upper Caves -5/Zhirov -4/Proximity Caves (discovered 1 exit: Fac) History --------- Turn | Location | Event 10 | -11/Scrapyard | Discovered new exit (range 15) 125 | -11/Scrapyard | Entered Materials 269 | -10/Materials | Discovered new exit (range 7) 307 | -10/Materials | Build established: Mutant 513 | -10/Materials | Discovered new exit (range 10) 623 | -10/Materials | Discovered new exit (range 8) 721 | -10/Materials | Discovered new exit (range 7) 865 | -10/Materials | Lost 4 parts (1p2n1w) 1204 | -10/Materials | Discovered new exit (range 12) 1653 | -10/Materials | Discovered new exit (range 8) 2448 | -10/Materials | Entered Mines 2453 | -10/Mines | Core integrity fell below 50% 2582 | -10/Mines | Received a Mining Laser from a helpful Derelict 2704 | -10/Mines | Discovered new exit (range 3) 2782 | -10/Mines | Build established: Scavenger-Mutant 2941 | -10/Mines | Discovered new exit (range 15) 3242 | -10/Mines | Learned Materials non-interactive machine intel 3340 | -10/Mines | Received a Rocket Launcher from a helpful Derelict 3416 | -10/Mines | Deemed a non-threat by the Exiles lab entrance 3419 | -10/Mines | Discovered new exit (range 5) 4010 | -10/Mines | Found a hidden stash of uninstalled traps 4309 | -10/Mines | Core integrity fell below 20% 4835 | -10/Mines | Entered Exiles 4898 | -10/Exiles | Met 8R-AWN 4935 | -10/Exiles | Met EX-HEX 5010 | -10/Exiles | Met EX-BIN 5047 | -10/Exiles | Aligned with FarCom system 5049 | -10/Exiles | Given EX-Vault access code 5105 | -10/Exiles | Opened EX-Vault 5115 | -10/Exiles | Found Longsword +1 5141 | -10/Exiles | Build established: Mutant 5155 | -10/Exiles | Warned to stay clear of 0b10 Research branches 5177 | -10/Exiles | Exiles lab attacked by MAIN.C 5302 | -10/Exiles | Discovered new exit (range 14) 5335 | -10/Exiles | Left Exiles lab with Longsword +1 5335 | -10/Exiles | Entered Mines 5389 | -9/Mines | Learned 4 Materials zone layouts 5560 | -9/Mines | A weapon hastily lodged in a ceiling crevice suddenly fell to the ground 6106 | -9/Mines | Discovered new exit (range 8) 6124 | -9/Mines | Discovered new exit (range 14) 6124 | -9/Mines | Entered Materials 6124 | -8/Materials | Evolved 4 slots: Propulsion x2, Utility x2 6126 | -8/Materials | Loaded intel: 40 non-interactive machine locations 6758 | -8/Materials | Build established: Scavenger-Mutant 7594 | -8/Materials | Destroyed 7 combat bots 8931 | -8/Materials | Lost 4 parts (1p2n1u) 8978 | -8/Materials | Discovered new exit (range 8) 9264 | -8/Materials | Core integrity fell below 50% 9357 | -8/Materials | Build established: Mutant 9491 | -8/Materials | Repaired Katana 9622 | -8/Materials | Discovered new exit (range 10) 9661 | -8/Materials | Entered Factory 9661 | -7/Factory | Evolved 2 slots: Utility x2 10148 | -7/Factory | Discovered new exit (range 12) 10249 | -7/Factory | Build established: Hacker-Sprinter 10528 | -7/Factory | Repaired Greatsword 10724 | -7/Factory | Discovered new exit (range 7) 10752 | -7/Factory | Identified exit to Lower Caves 10846 | -7/Factory | Discovered new exit (range 16) 10869 | -7/Factory | Entered another Factory area 10869 | -6/Factory | Evolved 2 slots: Utility x2 10920 | -6/Factory | Sucked down chute 10920 | -6/Factory | Entered Waste 10920 | -6/Waste | The area was eerily silent 10947 | -6/Waste | Discovered new exit (range 11) 10990 | -6/Waste | Murdered 3 allies 11056 | -6/Waste | Entered Factory 11090 | -6/Factory | Discovered new exit (range 9) 11629 | -6/Factory | Spotted B-75 Beast 11707 | -6/Factory | Discovered new exit (range 11) 11825 | -6/Factory | Fabricated Imp. Hacking Suite? 11836 | -6/Factory | Fabricated Imp. Hacking Suite? 12010 | -6/Factory | Fabricated Q-thruster? 12493 | -6/Factory | Central database locked down 12529 | -6/Factory | Identified exit to Lower Caves 12674 | -6/Factory | Fabricated Adv. System Shield? 13032 | -6/Factory | Entered Lower Caves 13033 | -6/Lower Caves | Encountered a Warlord checkpoint 13187 | -6/Lower Caves | Discovered new exit (range 2) 13187 | -6/Lower Caves | Entered another Lower Caves area 13210 | -6/Lower Caves | Encountered a Warlord checkpoint 13222 | -6/Lower Caves | Identified exit to Factory 13417 | -6/Lower Caves | Discovered new exit (range 5) 13418 | -6/Lower Caves | Entered Zion 13435 | -6/Zion | Visited the Megawrench Repair Shop 13435 | -6/Zion | Megawrench repaired 8 parts 13445 | -6/Zion | System corruption cleaned by Quarantine Array 13488 | -6/Zion | Found CR-A16's Pointy Stick 13535 | -6/Zion | Found Prototype Device 13535 | -6/Zion | Identified Mobile Refinery Mk. CCLXVII 13580 | -6/Zion | Learned location of 1 exit from Factory 13696 | -6/Zion | Rebuked by Imprinter 13746 | -6/Zion | Discovered new exit (range 16) 13748 | -6/Zion | Learned Factory stockpile data 13760 | -6/Zion | Learned location of Warlord (-4) 13780 | -6/Zion | Entered Proximity Caves 13800 | -5/Proximity Caves | Spotted B-75 Beast 13874 | -5/Proximity Caves | Spotter reported a threat 14063 | -5/Proximity Caves | Attracted the attention of an 0b10 checkpoint 14069 | -5/Proximity Caves | Entered Factory 14069 | -5/Factory | Evolved 2 slots: Power x1, Utility x1 14070 | -5/Factory | Identified exit to Factory 14394 | -5/Factory | Repaired Q-thruster 14426 | -5/Factory | Repaired Nanoactuators 14443 | -5/Factory | Discovered exit to Factory (range 13) 14498 | -5/Factory | Repaired Q-thruster 14600 | -5/Factory | Hacking Suite fried by hacking feedback 14776 | -5/Factory | Fabricated Imp. Hacking Suite? 14900 | -5/Factory | Build established: Wizard-Sprinter 14948 | -5/Factory | Allied Derelicts emerged from ambush trap array 15047 | -5/Factory | Fabricated Imp. Hacking Suite? 15343 | -5/Factory | Identified exit to Upper Caves 15430 | -5/Factory | Entered Upper Caves 15593 | -5/Upper Caves | Learned Factory trap positions 15597 | -5/Upper Caves | Lost 3 parts (2p1n) 15610 | -5/Upper Caves | Attracted the attention of an 0b10 base 15686 | -5/Upper Caves | Encountered a Warlord checkpoint 15688 | -5/Upper Caves | Learned 4 Factory zone layouts 15690 | -5/Upper Caves | Learned location of 1 exit from Proximity Caves 15699 | -5/Upper Caves | Lost 9 parts (2p3n3u1w) 15868 | -5/Upper Caves | Discovered new exit (range 16) 15872 | -5/Upper Caves | Entered another Upper Caves area 15937 | -5/Upper Caves | Discovered new exit (range 8) 15941 | -5/Upper Caves | Learned Factory trap positions 15950 | -5/Upper Caves | Entered Zhirov 15950 | -5/Zhirov | Discovered new exit (range 3) 15956 | -5/Zhirov | Met Zhirov 15963 | -5/Zhirov | Build established: Hacker-Sprinter 15963 | -5/Zhirov | Learned location of Command (-1) 15963 | -5/Zhirov | Learned location of Testing (-2) 15963 | -5/Zhirov | Learned location of Quarantine (-3) 15969 | -5/Zhirov | Zhirov requested help retrieving the SGEMP Prototype 15976 | -5/Zhirov | Found Alien Artifact 15976 | -5/Zhirov | Identified Integrated Dissipator 15976 | -5/Zhirov | Installed Integrated Dissipator, increased core heat dissipation (+20) 15999 | -5/Zhirov | Found Alien Artifact 16014 | -5/Zhirov | Entered Proximity Caves 16016 | -4/Proximity Caves | Found DCF Scrap (14 items) 16032 | -4/Proximity Caves | Spotted B-86 Titan 16069 | -4/Proximity Caves | Attracted the attention of an 0b10 outpost 16089 | -4/Proximity Caves | Attracted the attention of an 0b10 checkpoint 16094 | -4/Proximity Caves | Core integrity fell below 50% 16096 | -4/Proximity Caves | Released all parts (9) 16104 | -4/Proximity Caves | Core integrity fell below 20% 16108 | -4/Proximity Caves | Destroyed by P-70 Sage with Tesla Rifle Last Messages --------------- 16082_ VTOL Module destroyed. 16087_ Lgt. Angular Momentum Engine destroyed. 16089_ Y-64 Sentinel: "INTERCEPTING UNREGISTERED DERELICT." 16090_ Mak. Flight Unit destroyed. 16093_ VTOL Module destroyed. 16096_ ECM Suite destroyed. 16096_ Released Exp. Weapon Shielding. 16096_ Released Lance. 16096_ Released Imp. Hacking Suite. 16096_ Released Imp. Melee Analysis Suite. 16096_ Released Sml. Storage Unit. 16096_ Released Imp. Hacking Suite. 16096_ Released Adv. System Shield. 16096_ Released Longsword +1. 16096_ Released 0b10 Decoder Chip [Looter]. 16103_ S-27 Virus triggered Dirty Bomb Trap. 16103_ An explosion rips through the floor. 16103_ S-27 Virus destroyed. 16106_ Slug penetrates Wall. 16107_ M-30 Cleanser extracts Fire Trap. Map ----- +----------------------------------------------------+ | ##???????????????????????????????????????? | | ##??????????????????????????????????????? | | ##?????????????????????????????????????? | | ##????????????????????????????????????? | | #????????????????????????????????????? | | #??????????????????????????????????????? | | #???????????????????????????????????????? | | #???????????????????????????????????????? | | ## # #???????????????????????????????????????? | | ?# # ##??????????????????????????????????????? | | ? ## #??????????????????????????????????????? | | ## ##?????????????????????????????????????? | | #?????????????????????????????????????? | | ## ##????????????????????????????????????? | | # #?# #????####????????????????????????????? | | ## #?# ##???# ####?????????????????????????? | | ? #?# ##??# ## ##????????????????????????? | | ??## #### #????????????????????????? | | ???# ## ##"" #####?????????????????????? | | ? ???# #?# ### ## ##????????????????????? | | #?##???# #?? ###; #??????#?????????????? | | ???????# #######; %"#s #??### ### ?????????? | | ???????# Y ;# #? ?????????? | | ???????# s s p## ?????????? | | ???????## #### =! p #??????????????? | | ????????# #??### m /!! @ ##??????????????? | | ????????# #????# / ####???????????????? | | ???????? #????# ##??????????????????? | | ????????###????# ##???????????????????? | | ???????????????# ### ##????????????????????? | | ???????????????## #?## g ##?????????????????????? | | ????????????????###??## Y#??????????????????????? | | ??????????????????????## s#########??????????????? | | ???????????????????????## ???????? | | ????????????????????????### ???????? | | ??????????????????????????? ## ##### ???????? | | ???????????????????????????? ??????????????????? | | ???????????????????????????? ?????????????????? | | ????????????????????????????? #????????????????? | | ????????????????????????????? #????????????????? | | ?????????????????????????????? #????????????????? | | ?????????????????????????????? #????????????????? | | ??????????????????????????????? #????????????????? | | ???????????????????????????????##????????????????? | | ?????????????????????????????????????????????????? | | ?????????????????????????????????????????????????? | | ?????????????????????????????????????????????????? | | ?????????????????????????????????????????????????? | | ?????????????????????????????????????????????????? | | ?????????????????????????????????????????????????? | +----------------------------------------------------+ Best States ------------- Heat Dissipation 60 Energy Generation 24 Energy Capacity 350 Matter Stores 300 Matter Capacity 300 Sight Range 18 Robot Scan Range 16 Terrain Scan Density 10 ECM Strength 1 Cloak Strength 2 Armor Coverage 150 Propulsion Shielding 66 Utility Shielding 33 Weapon Shielding 90 Melee Speed Boost 30 Evasion (%) 64 Targeting Accuracy 5 Melee Accuracy 12 Recoil Reduction 4 Offensive Hacking 48 Defensive Hacking 26 Authchip Count 1 Item Schematics ----------------- Hacking Suite | -8/Materials | Scanalyzed System Shield | -7/Factory | Scanalyzed Imp. VTOL Module | -7/Factory | Scanalyzed Imp. Deuterium Engine | -7/Factory | Hacked Mic. Fission Core | -7/Factory | Hacked Imp. Recalibrator | -7/Factory | Hacked Imp. Titanium Leg | -7/Factory | Hacked Adv. Energy Well | -6/Factory | Scanalyzed ECM Suite | -6/Factory | Scanalyzed Lgt. Deuterium Engine | -6/Factory | Scanalyzed Lance | -6/Factory | Hacked Imp. Hacking Suite | -6/Factory | Hacked Cld. Cesium-ion Thruster | -6/Factory | Scanalyzed Imp. Heavy Armor Plating | -6/Factory | Hacked Adv. System Shield | -6/Factory | Hacked Adv. Signal Interpreter | -6/Factory | Hacked Imp. Thermal Shield | -6/Factory | Hacked Smartbomb Launcher | -6/Factory | Scanalyzed Imp. Sensor Array | -6/Factory | Scanalyzed Nuclear Pulse Thruster | -6/Factory | Scanalyzed Adv. Hacking Suite | -5/Factory | Hacked Q-thruster | -5/Factory | Scanalyzed Imp. Arc Thrower | -5/Zhirov | Free Exp. Optical Array | -5/Zhirov | Free Exp. Heat Sink | -5/Zhirov | Free Assault Drone Bay | -5/Zhirov | Free Robot Schematics ------------------ None Fabricated ------------ Imp. Hacking Suite | x1 | -6/Factory Imp. Hacking Suite | x1 | -6/Factory Q-thruster | x2 | -6/Factory | Preloaded Adv. System Shield | x1 | -6/Factory Imp. Hacking Suite | x1 | -5/Factory Imp. Hacking Suite | x1 | -5/Factory Alien Tech Used ----------------- Integrated Dissipator Achievements -------------- Maximum Efficiency Challenges ------------ None Game ------ Seed ScanMediumPlatform Manual? 0 Play Time 03:43:56 Cumulative 59.1 hours Start 2025.01.13 @ 11:28:52 End 2025.01.13 @ 22:20:54 Sessions 9 Manual Loads 0 Difficulty Rogue Special Mode None Game No. 70 Rogue 70 Adventurer 0 Explorer 0 Win Type - Total 0 Types 0/0/0/0/0/0/0/0/0 Lore% 38 Gallery% 45 Achievement% 37 Wizard Run 0 Options --------- Layout 0 ASCII 0 Keyboard 0 Movement Arrows Keybinds 0 Fullscreen 1 Font 18/SmallcapsGlow Map View 76x50 Zoom Use 0% Tactical HUD 1 Map Filters NONE Filters NONE Steam 0 RUN: e1002648-6477-4d38-9c44-a2702d6ebfed